bitfinex/quotes_SOLUSD_20260220
["timestamp","ask_amount","ask_price","bid_price","bid_amount"]
[1771559991229,3.75822776,83.14,83.108,0.50582812]
[1771559992457,4.23883584,83.14,83.108,0.50582812]
[1771559992744,0.48060808,83.139,83.11,0.50582812]
[1771559993255,0.48060808,83.138,83.11,0.50582812]
[1771559995360,0.48060808,83.138,83.112,0.50582812]
[1771559997061,0.48060808,83.138,83.114,0.50582812]
[1771559998655,0.48060808,83.138,83.113,12.03181211]
[1771559998656,0.48060808,83.136,83.108,0.50582812]
[1771559999270,0.48060808,83.139,83.108,0.50582812]
[1771560000367,12.02562346,83.156,83.121,0.50582812]
[1771560000586,0.48060808,83.155,83.121,0.50582812]
[1771560002071,0.48060808,83.189,83.141,0.50582812]
[1771560002253,0.48060808,83.177,83.143,0.50582812]
[1771560003056,0.50244322,83.183,83.151,0.50213205]
[1771560003249,12.0216113,83.184,83.151,0.50213205]
[1771560003650,12.52405452,83.184,83.151,0.50213205]
[1771560004146,60.08564804,83.215,83.142,42.09665391]
[1771560004147,0.50244322,83.191,83.161,0.50213205]
[1771560004346,0.50244322,83.189,83.163,0.50213205]
[1771560006967,0.47132446,83.194,83.165,0.4856229]
[1771560008147,0.47132446,83.192,83.165,0.4856229]
[1771560010662,0.47132446,83.192,83.166,12.02414448]
[1771560010863,0.47132446,83.192,83.167,0.4856229]
[1771560012764,0.47132446,83.198,83.169,0.4856229]
[1771560012964,0.47132446,83.198,83.168,12.02385532]
[1771560012965,0.47132446,83.198,83.171,0.4856229]
[1771560013164,12.49039617,83.202,83.171,0.4856229]
[1771560013369,0.47132446,83.201,83.171,0.4856229]
[1771560015076,0.47132446,83.201,83.172,12.02327706]
[1771560015379,0.47132446,83.201,83.173,0.4856229]
[1771560016357,3.95741027,83.21,83.172,12.02327706]
[1771560016358,0.47132446,83.206,83.181,0.4856229]
[1771560016571,0.2,83.21,83.181,0.4856229]
[1771560017164,0.2,83.21,83.183,0.4856229]
[1771560018079,0.47132446,83.199,83.171,0.4856229]
[1771560018262,12.01793075,83.209,83.13,3.75741027]
[1771560018263,0.47132446,83.179,83.141,0.4856229]
[1771560018576,3.75741027,83.19,83.141,0.4856229]
[1771560018577,0.47132446,83.169,83.141,0.4856229]
[1771560019376,0.47132446,83.169,83.143,0.4856229]
[1771560020284,0.47132446,83.175,83.143,0.4856229]
[1771560021360,0.47132446,83.175,83.145,0.4856229]
[1771560022178,3.75741027,83.17,83.145,0.4856229]
[1771560024765,4.22873473,83.17,83.147,0.4856229]
[1771560025362,3.75741027,83.17,83.147,0.4856229]
[1771560025600,0.47132446,83.169,83.146,12.02703677]
[1771560025876,0.47132446,83.159,83.131,0.4856229]
[1771560026182,0.47132446,83.149,83.131,0.4856229]
[1771560026367,0.47132446,83.149,83.111,0.4856229]
[1771560027470,0.47132446,83.149,83.112,0.4856229]
[1771560028271,0.47132446,83.149,83.121,0.4856229]
[1771560029889,0.47132446,83.149,83.123,0.4856229]
[1771560035903,0.47132446,83.149,83.125,0.4856229]
[1771560039300,0.47132446,83.149,83.127,0.46604076]
[1771560040096,0.47132446,83.149,83.122,0.46604076]
[1771560041402,0.47132446,83.149,83.123,12.4964054]
[1771560041697,3.75741027,83.15,83.124,0.46604076]
[1771560042298,51.84016586,83.19,83.13,3.75741027]
[1771560042299,0.48679042,83.162,83.13,3.75741027]
[1771560042482,0.48679042,83.171,83.141,0.46604076]
[1771560042681,0.48679042,83.169,83.141,0.46604076]
[1771560042978,0.48679042,83.169,83.13,3.75741027]
[1771560043301,0.48679042,83.149,83.124,0.46604076]
[1771560043502,0.48679042,83.149,83.119,12.03089314]
[1771560043707,0.48679042,83.139,83.12,0.46604076]
[1771560044581,0.48679042,83.139,83.122,0.46604076]
[1771560045199,3.75741027,83.16,83.114,12.03166592]
[1771560045200,3.75741027,83.13,83.114,12.03166592]
[1771560046405,3.75741027,83.13,83.112,0.50782426]
[1771560046702,12.02816488,83.139,83.112,0.50782426]
[1771560048408,3.75741027,83.13,83.113,12.03181211]
[1771560049608,3.75741027,83.13,83.111,0.153823]
[1771560050310,3.75741027,83.14,83.112,0.50782426]
[1771560051507,3.75741027,83.14,83.114,0.50782426]
[1771560051907,3.75741027,83.14,83.113,12.03181211]
[1771560053492,15.78542568,83.14,83.113,12.03181211]
[1771560055414,15.78542568,83.14,83.112,0.50782426]
[1771560055915,15.78581123,83.14,83.112,0.50782426]
[1771560056816,3.75779582,83.14,83.112,0.50782426]
[1771560057712,3.75779582,83.14,83.111,0.153823]
[1771560057713,3.75779582,83.14,83.114,0.50782426]
[1771560060416,3.75779582,83.14,83.116,0.50782426]
[1771560060594,12.02673794,83.149,83.116,0.50782426]
[1771560060791,3.75779582,83.14,83.116,0.50782426]
[1771560062016,12.02673794,83.149,83.116,0.50782426]
[1771560063533,3.75779582,83.14,83.116,0.50782426]
[1771560065220,3.75779582,83.14,83.118,0.50782426]
[1771560067115,3.75779582,83.15,83.12,0.50782426]
[1771560068504,12.02547237,83.157,83.121,0.50782426]
[1771560068701,51.84070966,83.19,83.131,0.50782426]
[1771560068702,12.02477657,83.162,83.131,0.50782426]
[1771560069514,3.75779582,83.16,83.133,0.50782426]
[1771560071825,3.75779582,83.16,83.135,0.50782426]
[1771560074607,3.75779582,83.16,83.137,0.50782426]
[1771560078732,12.02451554,83.164,83.137,0.50782426]
[1771560078933,3.75779582,83.16,83.139,0.50782426]
[1771560079640,12.02371529,83.169,83.139,0.50782426]
[1771560083139,3.75779582,83.16,83.141,0.50782426]
[1771560085333,3.75779582,83.16,83.142,12.0276154]
[1771560086728,3.75779582,83.14,83.111,0.153823]
[1771560086913,3.75779582,83.16,83.111,0.153823]
[1771560086914,3.75779582,83.12,83.111,0.153823]
[1771560087109,3.75779582,83.13,83.112,0.50782426]
[1771560087633,3.75779582,83.15,83.121,0.50782426]
[1771560089418,12.02516303,83.159,83.123,0.50782426]
[1771560089735,3.75779582,83.15,83.123,0.50782426]
[1771560090931,3.75779582,83.13,83.111,0.66164726]
[1771560091134,3.75779582,83.13,83.112,0.50782426]
[1771560091834,12.02949632,83.129,83.112,0.50782426]
[1771560092039,12.02949632,83.129,83.042,48.16827004]
[1771560092040,3.75779582,83.12,83.08,0.1]
[1771560092219,3.75779582,83.09,83.074,0.50782426]
[1771560094237,12.03403579,83.098,83.074,0.50782426]
[1771560095338,3.75779582,83.1,83.076,0.50782426]
[1771560096615,3.75779582,83.1,83.07,3.85779582]
[1771560096616,3.75779582,83.1,83.077,12.03702589]
[1771560096815,3.75779582,83.1,83.071,0.50782426]
[1771560096816,3.75779582,83.09,83.07,0.1]
[1771560097042,3.75779582,83.08,83.065,0.50782426]
[1771560097540,3.75779582,83.08,83.06,0.1]
[1771560097726,3.75779582,83.07,83.06,0.1]
[1771560098134,3.75779582,83.08,83.06,0.60782426]
[1771560101022,3.75779582,83.08,83.06,0.1]
[1771560101223,3.75779582,83.08,83.04,33.96363678]
[1771560101224,7.51559164,83.07,83.04,0.1]
[1771560101529,3.75779582,83.05,83.023,0.50782426]
[1771560101727,3.75779582,83.07,83.02,0.1]
[1771560101728,3.75779582,83.04,83.021,0.50782426]
[1771560101939,3.75779582,83.05,83.021,0.50782426]
[1771560102826,3.75779582,83.06,83.021,0.50782426]
[1771560103426,3.75779582,83.05,83.023,0.50782426]
[1771560103738,12.03963447,83.059,83.023,0.50782426]
[1771560104917,3.75779582,83.06,83.023,0.50782426]
[1771560105121,15.79741777,83.06,83.023,0.50782426]
[1771560105339,15.79741777,83.06,83.025,0.50782426]
[1771560106428,3.75779582,83.05,83.025,0.50782426]
[1771560107026,3.75779582,83.05,83.02,0.1]
[1771560107228,3.75779582,83.05,83.01,0.60782426]
[1771560107229,42.13834576,83.06,83.01,0.1]
[1771560107230,3.69383402,83.057,83.01,0.1]
[1771560107534,3.69383402,83.057,82.99,0.1]
[1771560107535,3.75779582,83.02,82.991,0.50782426]
[1771560107736,3.75779582,83.01,82.99,0.1]
[1771560108538,3.69383402,83.037,82.99,0.1]
[1771560108539,3.75779582,83.0,82.99,0.1]
[1771560108845,3.75779582,83.0,82.966,30.1327063]
[1771560108846,3.75779582,83.0,82.981,0.50782426]
[1771560109349,12.04833793,82.999,82.981,0.50782426]
[1771560109559,12.04833793,82.999,82.97,0.50782426]
[1771560110026,3.75779582,83.0,82.971,0.50782426]
[1771560111147,3.75779582,83.01,82.971,0.50782426]
[1771560111643,12.04688648,83.009,82.973,0.50782426]
[1771560113230,3.75779582,83.01,82.981,0.50782426]
[1771560113633,3.75779582,83.01,82.983,0.50782426]
[1771560113829,3.75779582,82.99,82.95,3.69383402]
[1771560114034,3.75779582,83.01,82.887,48.2584196]
[1771560114035,3.75779582,82.98,82.94,0.50782426]
[1771560114234,3.75779582,82.98,82.901,0.50782426]
[1771560114235,3.75779582,82.96,82.901,0.50782426]
[1771560114445,3.75779582,82.94,82.911,0.50782426]
[1771560114936,3.75779582,82.95,82.921,0.50782426]
[1771560115336,3.75779582,82.97,82.931,0.50782426]
[1771560115535,3.75779582,82.98,82.942,12.05661787]
[1771560115841,11.22690649,82.98,82.943,0.50782426]
[1771560117241,11.22690649,83.0,82.936,0.50782426]
[1771560117436,11.22690649,83.0,82.906,30.1542806]
[1771560117437,11.22690649,82.97,82.941,0.50782426]
[1771560117640,11.22690649,82.98,82.943,0.50782426]
[1771560117846,12.05124188,82.979,82.943,0.50782426]
[1771560118044,11.22679278,82.97,82.943,0.50782426]
[1771560119744,11.22679278,82.97,82.9,0.2583984]
[1771560119745,138.60598533,82.969,82.9,0.2583984]
[1771560119957,11.22679278,82.95,82.9,12.32109173]
[1771560120146,11.22679278,82.93,82.9,23.54788451]
[1771560120458,3.69383402,82.966,82.911,0.50782426]
[1771560120459,11.22679278,82.94,82.911,0.50782426]
[1771560120661,42.18443031,82.969,82.911,0.50782426]
[1771560120953,11.22679278,82.94,82.911,0.50782426]
[1771560121256,11.22679278,82.95,82.911,0.50782426]
[1771560121456,11.22679278,82.95,82.921,0.50782426]
[1771560121754,11.22679278,82.94,82.921,0.50782426]
[1771560122057,11.22679278,82.95,82.921,0.50782426]
[1771560122949,42.18493876,82.968,82.923,0.50782426]
[1771560123151,42.18493876,82.968,82.922,12.05952581]
[1771560123152,11.22679278,82.98,82.951,0.50782426]
[1771560124337,90.34185356,83.018,82.951,0.50782426]
[1771560124338,11.22679278,82.99,82.951,0.50782426]
[1771560124537,42.15953166,83.018,82.961,0.50782426]
[1771560124756,11.22679278,83.0,82.961,0.50782426]
[1771560125140,42.15953166,83.018,82.952,12.05516443]
[1771560125141,42.15953166,83.018,82.971,0.50782426]
[1771560125347,11.22679278,83.0,82.971,0.50782426]
[1771560125554,42.15953166,83.018,82.953,0.50782426]
[1771560125555,11.22679278,82.99,82.953,0.50782426]
[1771560125740,48.17640735,83.029,82.954,12.05487378]
[1771560125741,11.22679278,83.0,82.954,12.05487378]
[1771560125941,11.22679278,83.0,82.923,0.50782426]
[1771560125942,11.22679278,82.96,82.923,0.50782426]
[1771560126148,11.22679278,82.97,82.931,0.50782426]
[1771560128138,12.05124188,82.979,82.941,0.50782426]
[1771560129039,11.22679278,82.98,82.951,0.50782426]
[1771560129242,11.22679278,82.99,82.951,0.50782426]
[1771560129550,42.16918275,82.999,82.961,0.50782426]
[1771560130260,11.22679278,82.99,82.961,0.50782426]
[1771560132462,3.69383402,83.009,82.961,0.50782426]
[1771560132668,11.22679278,82.99,82.961,0.50782426]
[1771560133176,11.22679278,82.97,82.925,0.50782426]
[1771560133363,11.22679278,82.96,82.925,0.50782426]
[1771560133539,5.36086188,82.996,82.925,0.50782426]
[1771560133540,11.22679278,82.95,82.925,0.50782426]
[1771560134357,11.22679278,82.96,82.925,0.50782426]
[1771560135467,12.05414722,82.959,82.925,0.50782426]
[1771560135765,11.22679278,82.95,82.925,0.50782426]
[1771560135945,11.22679278,82.95,82.91,11.22679278]
[1771560135946,11.22679278,82.94,82.91,11.22679278]
[1771560136152,11.22679278,82.92,82.9,0.2583984]
[1771560136364,11.22679278,82.93,82.9,0.2583984]
[1771560136868,11.22679278,82.94,82.902,0.50782426]
[1771560137255,11.22679278,82.93,82.902,0.50782426]
[1771560137454,23.28516909,82.93,82.902,0.50782426]
[1771560138382,12.05837631,82.93,82.902,0.50782426]
[1771560139468,11.22679278,82.94,82.902,0.50782426]
[1771560139672,12.05705397,82.939,82.902,0.50782426]
[1771560139883,12.05705397,82.939,82.911,0.50782426]
[1771560140373,11.22679278,82.92,82.9,0.2583984]
[1771560140693,11.22679278,82.91,82.88,0.60782426]
[1771560141770,11.22679278,82.91,82.881,0.50782426]
[1771560141978,11.22679278,82.9,82.88,0.60782426]
[1771560142162,11.22679278,82.89,82.86,11.22679278]
[1771560142475,0.4969922,82.899,82.86,11.22679278]
[1771560143371,0.4969922,82.899,82.856,12.06913198]
[1771560143579,0.4969922,82.899,82.86,11.22679278]
[1771560143780,42.21450821,82.91,82.87,11.22679278]
[1771560143781,0.49693688,82.898,82.87,11.22679278]
[1771560143965,0.49693688,82.898,82.861,12.06840371]
[1771560144156,11.22679278,82.9,82.871,0.4748398]
[1771560144966,0.49688219,82.906,82.871,0.4748398]
[1771560145271,12.06199867,82.905,82.871,0.4748398]
[1771560145669,3.69383402,82.933,82.85,11.22679278]
[1771560145670,0.49682813,82.932,82.891,0.4748398]
[1771560145872,11.22679278,82.92,82.891,0.4748398]
[1771560146054,0.4967747,82.919,82.891,0.4748398]
[1771560147277,0.49672187,82.929,82.891,0.4748398]
[1771560147573,0.49672187,82.929,82.891,12.0640359]
[1771560147767,0.49672187,82.929,82.894,0.4748398]
[1771560148570,3.69383402,82.953,82.893,12.06374482]
[1771560148571,0.49761571,82.946,82.911,0.4748398]
[1771560148953,11.22679278,82.95,82.911,0.4748398]
[1771560149157,12.05560042,82.949,82.911,0.4748398]
[1771560149775,12.55321613,82.949,82.911,0.4748398]
[1771560149971,0.49761571,82.948,82.913,0.4748398]
[1771560150571,0.49761571,82.948,82.921,0.4748398]
[1771560152368,162.79423329,82.985,82.92,23.28656014]
[1771560152369,11.22679278,82.96,82.923,0.4748398]
[1771560152576,12.55176293,82.959,82.923,0.4748398]
[1771560152775,0.49761571,82.958,82.923,0.4748398]
[1771560153386,12.05414722,82.959,82.931,0.4748398]
[1771560153876,0.49761571,82.949,82.923,0.4748398]
[1771560154683,12.05574576,82.948,82.923,0.4748398]
[1771560155777,12.55263501,82.953,82.923,0.4748398]
[1771560156463,0.49761571,82.952,82.923,0.4748398]
[1771560157275,0.50265548,82.958,82.923,0.4748398]
[1771560157868,0.50265548,82.958,82.925,0.50768814]
[1771560158680,12.05414722,82.959,82.925,0.50768814]
[1771560158860,12.05358433,82.963,82.925,0.50768814]
[1771560159063,12.05358433,82.963,82.931,0.50768814]
[1771560159772,0.50265548,82.963,82.931,0.50768814]
[1771560160079,0.50265548,82.959,82.931,0.50768814]
[1771560161480,0.50265548,82.957,82.903,30.15549051]
[1771560161682,0.50265548,82.949,82.911,0.50768814]
[1771560165183,12.05574576,82.948,82.913,0.50768814]
[1771560165886,0.50265548,82.947,82.913,0.50768814]
[1771560166788,0.50265548,82.965,82.93,11.22679278]
[1771560167088,12.05414722,82.959,82.931,0.50768814]
[1771560167267,0.50265548,82.958,82.931,0.50768814]
[1771560168891,0.50265548,82.958,82.933,0.50768814]
[1771560170472,0.50265548,82.969,82.933,0.50768814]
[1771560170698,0.50265548,82.98,82.941,0.50768814]
[1771560170877,0.50265548,82.969,82.941,0.50768814]
[1771560171680,3.69383402,83.003,82.961,0.50768814]
[1771560171681,12.04789661,83.003,82.961,0.50768814]
[1771560171882,12.04789661,83.003,82.971,0.50768814]
[1771560172180,0.50265548,83.004,82.971,0.50768814]
[1771560172890,0.50265548,83.017,82.981,0.50768814]
[1771560173089,0.50265548,83.017,82.991,0.50768814]
[1771560174476,11.22679278,83.02,82.991,0.50768814]
[1771560174682,12.04491491,83.023,82.991,0.50768814]
[1771560174888,12.04491491,83.023,82.993,0.50768814]
[1771560175592,12.54757039,83.023,82.993,0.50768814]
[1771560175895,11.22679278,83.02,82.993,0.50768814]
[1771560177597,3.69383402,83.053,83.001,0.50768814]
[1771560177598,12.04426424,83.028,83.001,0.50768814]
[1771560177807,12.04426424,83.028,83.0,11.22679278]
[1771560177808,0.50265548,83.043,83.01,11.22679278]
[1771560177989,12.04255349,83.039,83.011,0.50768814]
[1771560178509,12.54520897,83.039,83.011,0.50768814]
[1771560179998,12.04137264,83.048,83.013,0.50768814]
[1771560180721,0.50265548,83.049,83.021,0.50768814]
[1771560180902,0.50265548,83.039,83.012,0.50768814]
[1771560182206,12.04108417,83.049,83.021,0.50768814]
[1771560183405,11.40897759,83.05,83.031,0.53103276]
[1771560183406,0.2,83.05,83.031,0.53103276]
[1771560184315,0.2,83.05,83.033,0.53103276]
[1771560188223,30.09479039,83.071,83.033,0.53103276]
[1771560188426,2.47215037,103.98,83.03,11.20897759]
[1771560188427,11.76225189,83.07,83.035,0.5075057]
[1771560188624,11.20897759,83.07,83.035,0.5075057]
[1771560188928,0.5532743,83.069,83.035,0.5075057]
[1771560189621,11.20897759,83.06,83.036,0.5075057]
[1771560189929,11.20897759,83.06,83.022,0.5075057]
[1771560189930,0.5532743,83.049,83.022,0.5075057]
[1771560190419,0.5532743,83.059,83.022,0.5075057]
[1771560191518,0.5532743,83.057,83.024,0.5075057]
[1771560192305,0.5532743,83.057,83.03,11.20897759]
[1771560192512,0.5532743,83.057,83.031,0.5075057]
[1771560194907,0.5532743,83.057,83.031,12.55115189]
[1771560195211,0.5532743,83.057,83.032,0.5075057]
[1771560197727,0.5532743,83.055,83.032,0.5075057]
[1771560198510,3.76442372,83.06,83.034,0.5075057]
[1771560198820,0.5532743,83.06,83.034,0.5075057]
[1771560199830,12.03963447,83.059,83.034,0.5075057]
[1771560203531,0.5532743,83.058,83.034,0.5075057]
[1771560204514,12.03818512,83.069,83.035,0.5075057]
[1771560204719,12.03818512,83.069,83.041,0.5075057]
[1771560205028,0.5532743,83.074,83.041,0.5075057]
[1771560205631,0.5532743,83.074,83.042,12.04209917]
[1771560205814,12.58902113,83.086,83.051,0.5075057]
[1771560206014,0.2,83.09,83.061,0.5075057]
[1771560207232,12.2351961,83.09,83.062,12.03919963]
[1771560207435,15.99961982,83.09,83.063,0.5075057]
[1771560207635,16.55289412,83.09,83.063,0.5075057]
[1771560207831,0.5532743,83.089,83.063,0.5075057]
[1771560209839,12.03543231,83.088,83.063,0.5075057]
[1771560211714,0.2,83.09,83.07,3.76442372]
[1771560211919,0.2,83.09,83.071,0.5075057]
[1771560214320,0.2,83.09,83.073,0.5075057]
[1771560214516,0.2,83.09,83.067,12.0383866]
[1771560214721,0.5532743,83.088,83.051,0.5075057]
[1771560215143,0.5532743,83.088,83.061,0.5075057]
[1771560216341,0.5532743,83.088,83.06,15.80381877]
[1771560216536,0.5532743,83.086,83.056,12.0400413]
[1771560216924,0.5532743,83.086,83.057,0.53923749]
[1771560217221,0.5532743,83.086,83.061,0.53923749]
[1771560217635,0.2,83.09,83.061,0.53923749]
[1771560217849,0.2,83.09,83.056,12.0400413]
[1771560217850,0.2,83.09,83.071,0.53923749]
[1771560219443,0.2,83.09,83.073,0.53923749]
[1771560224430,0.58597791,83.088,83.063,0.53923749]
[1771560225740,0.2,83.09,83.063,0.53923749]
[1771560229144,0.2,83.09,83.065,0.53923749]
[1771560229553,0.2,83.09,83.071,0.53923749]
[1771560230159,12.62126537,83.089,83.071,0.53923749]
[1771560230777,0.58597791,83.089,83.071,0.53923749]
[1771560231544,0.2,83.09,83.071,0.53923749]
[1771560231936,0.2,83.09,83.073,0.53923749]
[1771560234151,0.2,83.09,83.075,0.53923749]
[1771560235044,0.58597791,83.106,83.08,3.76442372]
[1771560235249,0.58597791,83.106,83.081,0.53923749]
[1771560236048,12.03297033,83.105,83.081,0.53923749]
[1771560236436,12.61894824,83.105,83.081,0.53923749]
[1771560238365,0.58597791,83.104,83.081,0.53923749]
[1771560241362,0.58597791,83.108,83.083,0.53923749]
[1771560243762,0.58597791,83.108,83.085,0.59607814]
[1771560244160,4.31268082,83.12,83.091,0.59607814]
[1771560244467,0.55283615,83.126,83.101,0.59607814]
[1771560246153,0.55283615,83.124,83.101,0.59607814]
[1771560246352,0.55283615,83.119,83.091,0.59607814]
[1771560248346,0.55283615,83.119,83.093,0.57865086]
[1771560248548,0.55822807,83.109,83.08,3.75984467]
[1771560248744,0.55822807,83.099,83.071,12.03789529]
[1771560250348,0.55822807,83.099,83.06,3.75984467]
[1771560250562,0.55822807,83.099,83.061,0.57865086]
[1771560250867,0.55822807,83.099,83.06,3.75984467]
[1771560250868,0.55822807,83.099,83.07,4.33849553]
[1771560251062,0.55822807,83.099,83.071,0.57865086]
[1771560252444,0.55822807,83.097,83.07,12.03796454]
[1771560252649,0.55822807,83.089,83.057,0.57865086]
[1771560252849,0.55822807,83.089,83.061,0.57865086]
[1771560254864,0.55822807,83.089,83.063,0.57865086]
[1771560257770,0.55822807,83.089,83.064,12.03890975]
[1771560258070,0.55822807,83.089,83.064,12.61756061]
[1771560258269,0.55822807,83.089,83.065,0.57865086]
[1771560260072,0.55822807,83.089,83.071,0.57865086]
[1771560260268,3.75984467,83.11,83.071,0.57865086]
[1771560262166,12.03253597,83.108,83.072,12.03775038]
[1771560262366,0.55822807,83.107,83.073,0.57865086]
[1771560262673,3.75984467,83.11,83.081,0.57865086]
[1771560262857,4.31807274,83.11,83.081,0.57865086]
[1771560263272,0.55822807,83.109,83.081,0.57865086]
[1771560264569,0.55822807,83.108,83.081,12.61507716]
[1771560264772,0.55822807,83.108,83.082,0.57865086]
[1771560266570,12.03268076,83.107,83.082,0.57865086]
[1771560266774,0.55822807,83.106,83.082,0.57865086]
[1771560268376,3.75984467,83.1,83.077,0.57865086]
[1771560268577,0.55822807,83.099,83.077,0.57865086]
[1771560268765,0.55822807,83.099,83.079,0.57865086]
[1771560271557,0.55822807,83.099,83.062,30.09788459]
[1771560271558,12.03398397,83.098,83.062,30.09788459]
[1771560271764,0.55822807,83.097,83.064,0.57865086]
[1771560273083,0.55822807,83.095,83.071,0.57865086]
[1771560273472,4.31807274,83.1,83.071,0.57865086]
[1771560274279,0.55822807,83.099,83.071,0.57865086]
[1771560275076,0.55822807,83.099,83.073,0.57865086]
[1771560276881,0.6121634,83.097,83.067,12.61514144]
[1771560277088,0.6121634,83.095,83.068,0.57677753]
[1771560278792,0.6121634,83.109,83.071,0.57677753]
[1771560279784,0.6121634,83.108,83.073,0.57677753]
[1771560280500,3.75984467,83.1,83.073,0.57677753]
[1771560280703,0.6121634,83.099,83.067,12.03842497]
[1771560280871,0.6121634,83.099,83.068,0.57677753]
[1771560285795,0.6121634,83.097,83.062,12.61583295]
[1771560285993,0.6121634,83.097,83.04,3.75984467]
[1771560285994,0.6121634,83.079,83.042,0.57677753]
[1771560286289,0.6121634,83.079,83.004,102.4]
[1771560286290,0.6121634,83.059,83.027,12.62094122]
[1771560286475,0.6121634,83.059,83.028,0.57677753]
[1771560287477,0.6121634,83.057,83.028,0.57677753]
[1771560289774,0.6121634,83.049,83.022,0.57677753]
[1771560290993,0.6121634,83.047,83.012,0.57677753]
[1771560294099,0.6121634,83.047,82.989,3.69383402]
[1771560294100,0.6121634,83.029,82.997,0.57677753]
[1771560296696,12.04412969,83.028,82.998,12.04848309]
[1771560296893,12.04412969,83.028,82.999,0.57677753]
[1771560296894,0.6121634,83.027,82.999,0.57677753]
[1771560297600,0.6121634,83.027,82.998,12.04848309]
[1771560298105,0.6121634,83.027,82.999,0.57677753]
[1771560298489,3.75984467,83.02,82.999,0.57677753]
[1771560298692,0.6121634,83.019,82.999,0.57677753]
[1771560299295,0.6121634,83.017,82.993,0.57677753]
[1771560299488,0.6121634,83.009,82.981,0.57677753]
[1771560300388,0.6121634,83.009,82.982,0.57677753]
[1771560300590,3.76930898,83.04,82.981,12.05095142]
[1771560300591,0.6121634,83.039,83.001,0.57677753]
[1771560300849,0.6121634,83.037,83.003,0.57677753]
[1771560301908,0.6121634,83.037,83.011,0.57677753]
[1771560302123,12.04202646,83.043,83.011,0.57677753]
[1771560302299,0.57683076,83.042,83.011,0.57677753]
[1771560303010,0.57683076,83.042,83.01,3.76930898]
[1771560303011,12.04224419,83.041,83.013,0.58141963]
[1771560303208,33.87184797,83.05,83.013,0.58141963]
[1771560303209,0.57683076,83.049,83.013,0.58141963]
[1771560303413,0.57683076,83.048,83.013,0.58141963]
[1771560305298,0.57683076,83.048,83.015,0.58141963]
[1771560307597,3.76930898,83.05,83.021,0.58222892]
[1771560308213,0.58179593,83.049,83.021,0.58222892]
[1771560310841,0.58179593,83.047,83.011,0.58222892]
[1771560311024,0.58179593,83.029,83.001,12.63027653]
[1771560311407,0.58179593,83.029,83.001,0.58222892]
[1771560314320,12.04412969,83.028,83.001,0.58222892]
[1771560314509,0.58179593,83.027,83.001,0.58222892]
[1771560315926,0.58179593,83.027,83.002,0.58222892]
[1771560317210,3.76930898,83.04,82.981,0.58222892]
[1771560317211,0.58179593,83.009,82.981,0.58222892]
[1771560317625,0.58179593,83.009,82.982,0.58222892]
[1771560317808,12.04441982,83.026,82.991,0.58222892]
[1771560318012,3.76930898,83.03,83.001,0.58222892]
[1771560318209,12.04398463,83.029,83.001,0.58222892]
[1771560320013,12.04398463,83.029,83.003,0.58222892]
[1771560321336,0.11934461,83.037,83.005,0.58222892]
[1771560323622,3.76930898,83.05,83.021,0.58222892]
[1771560323803,0.11642374,83.057,83.021,0.58222892]
[1771560324625,12.03963447,83.059,83.023,0.58222892]
[1771560325406,0.11218414,83.058,83.023,0.58222892]
[1771560326630,12.03963447,83.059,83.025,0.58222892]
[1771560327015,12.14973527,83.059,83.025,0.58222892]
[1771560328934,0.10600562,83.058,83.025,0.58222892]
[1771560329431,0.10399324,83.039,83.015,0.58222892]
[1771560330030,0.10399324,83.039,83.016,0.58222892]
[1771560330745,0.10399324,83.039,82.995,30.12198316]
[1771560330746,0.10399324,83.039,83.018,0.58222892]
[1771560331441,3.76930898,83.04,83.018,0.58222892]
[1771560332934,3.86740271,83.04,83.018,0.58222892]
[1771560333242,0.09809373,83.038,83.008,0.58222892]
[1771560333738,12.04253423,83.039,83.008,0.58222892]
[1771560333942,2.47215037,103.31,83.007,12.04705823]
[1771560333943,0.09617223,83.101,83.031,0.58222892]
[1771560334116,48.11497668,83.135,83.061,0.58222892]
[1771560334117,15.80300332,83.1,83.061,0.58222892]
[1771560334310,15.80300332,83.1,83.043,3.69383402]
[1771560334311,12.03369434,83.1,83.071,0.58222892]
[1771560334518,15.80300332,83.1,83.071,0.58222892]
[1771560334721,0.0942728,83.099,83.071,0.58222892]
[1771560335334,0.0942728,83.099,83.072,12.03775038]
[1771560335633,3.76930898,83.1,83.073,0.58222892]
[1771560337831,3.76930898,83.1,83.075,0.5592216]
[1771560338929,15.80305397,83.1,83.075,0.5592216]
[1771560343923,15.87949196,83.1,83.075,0.5592216]
[1771560344338,0.07476522,83.099,83.075,0.5592216]
[1771560344540,3.76930898,83.1,83.075,0.5592216]
[1771560347742,12.03351627,83.102,83.077,0.57198131]
[1771560347946,12.03258927,83.108,83.077,0.57198131]
[1771560350866,12.03258927,83.108,83.079,0.57198131]
[1771560353243,3.76930898,83.09,83.06,3.76930898]
[1771560353435,3.76930898,83.09,83.061,0.57198131]
[1771560357046,3.76930898,83.09,83.06,3.76930898]
[1771560357047,3.76930898,83.09,83.063,0.57198131]
[1771560359853,3.76153759,83.09,83.063,0.57198131]
[1771560360657,3.76153759,83.09,83.065,0.57198131]
[1771560362156,3.76153759,83.07,83.048,0.57198131]
[1771560363151,3.76153759,83.08,83.048,0.57198131]